Cogmind - Beta 11.1 @@@ ROGUE MODE // 2022.05.02 @ 14:56:38 Player: Olga Result: Self-destructed Performance ------------- Evolutions (1) 500 Regions Visited (2) 400 Robots Destroyed (11) 55 Value Destroyed (122) 122 Prototype IDs (4) 80 Alien Tech Used (0) 0 Bonus (0) 0 TOTAL SCORE: 1157 Bonus ------- None Cogmind --------- Core Integrity 221/400 Matter 113/300 Energy 96/125 System Corruption 3% Temperature Cool (1) Movement Flying (40) Location -9/Materials Parts ------- > --- POWER (1) -------- Light Ion Engine > --- PROPULSION (2) --- Flight Unit > --- UTILITY (4) ------ Weight Redist. System Visual Processing Unit Sensor Array Signal Interpreter > --- WEAPON (2) ------- (None) > --- INVENTORY (5) ---- Signal Interpreter Signal Interpreter Terrain Scanner Medium Armor Plating Rocket Launcher Peak State ------------ > --- POWER ------------ Heavy Ion Engine > --- PROPULSION ------- (None) > --- UTILITY ---------- Weight Redist. System Visual Processing Unit Sensor Array Signal Interpreter > --- WEAPON ----------- Rocket Launcher > --- INVENTORY -------- Signal Interpreter Signal Interpreter Terrain Scanner Medium Armor Plating Rocket Launcher [Rating: 11] Favorites ----------- Power Light Ion Engine Engine Light Ion Engine Propulsion Flight Unit Flight Unit Flight Unit Utility Visual Processing Unit Device Sensor Array Processor Visual Processing Unit Protection Medium Armor Plating Weapon Small Laser Energy Gun Small Laser Launcher Rocket Launcher Build | -11 -10 -9 ------- Run | Scr Mat Mat Slots Evolved 2 | . . 2 Power . | . . . Propulsion . | . . . Utility 2 | . . 2 Weapon . | . . . Parts Attached 14 | 1 2 11 Power 5 | . . 5 Engine 5 | . . 5 Core . | . . . Reactor . | . . . Propulsion 2 | . . 2 Treads . | . . . Leg . | . . . Wheel . | . . . Hover . | . . . Flight 2 | . . 2 Utility 5 | . 2 3 Device 2 | . . 2 Storage . | . . . Processor 2 | . 2 . Hackware . | . . . Protection 1 | . . 1 Artifact . | . . . Weapon 2 | 1 . 1 Energy Gun 1 | 1 . . Energy Cannon . | . . . Ballistic Gun . | . . . Ballistic Cannon . | . . . Launcher 1 | . . 1 Special Weapon . | . . . Impact Weapon . | . . . Slashing Weapon . | . . . Piercing Weapon . | . . . Special Melee Weapon . | . . . Unidentified Prototypes 1 | . . 1 Parts Lost 3 | . . 3 Power . | . . . Propulsion 1 | . . 1 Utility . | . . . Weapon 2 | . . 2 Highest Loss Streak 2 | . . 2 To Critical Strikes . | . . . Average Slot Usage (%) 52 | . 25 63 Engine 5 | . . 7 Flight 2 | . . 3 Device 14 | . . 20 Processor 18 | . 11 22 Energy Gun 5 | . 14 2 Launcher 4 | . . 7 Naked Turns . | . . . Heaviest Build 8 | 1 1 8 Greatest Support 14 | 3 3 14 Greatest Overweight (x) . | . . . Average Overweight (x) . | . . . Largest Inventory Capacity 5 | 5 5 5 Average Capacity 5 | 5 5 5 Most Carried 5 | 4 5 5 Average Carried 4 | 4 4 4 Final Capacity 5 | 5 5 5 Final Carried 5 | 4 5 5 Class Distribution -------------------- 87% | Scout 12% | Mutant Dominant Class ---------------- Mutant | -10/Materials Scout | -9/Materials Resources | -11 -10 -9 ----------- Run | Scr Mat Mat Matter Collected 200 | 200 . . Remotely . | . . . Salvage Created 83 | . 18 65 Parts 13 | . 2 11 Haulers Intercepted . | . . . Recyclers Shooed . | . . . Parts Field Recycled . | . . . Retrieved Matter . | . . . Parts Self-Destructed . | . . . Prevented . | . . . Kills | -11 -10 -9 ------- Run | Scr Mat Mat Combat Hostiles Destroyed 7 | . . 7 AOE 7 | . . 7 Classes Destroyed 3 | . 1 2 Builder 2 | . . 2 Watcher 2 | . 1 1 Swarmer 7 | . . 7 Best Kill Streak 10 | . 1 10 Combat Bots Only 7 | . . 7 Max Kills in Single Turn 4 | . 1 4 Gunslinging . | . . . Exploded 3 | . . 3 Melee . | . . . Uniques/NPCs Destroyed . | . . . Combat | -11 -10 -9 -------- Run | Scr Mat Mat Damage Taken 504 | . 141 363 Core 266 | . 87 179 Absorbed by Shields . | . . . Core Remaining (%) 82 | 100 65 . Volleys Fired 5 | . . 5 Largest 1 | . . 1 Hottest 33 | . . 33 Shots Fired 5 | . . 5 Gun . | . . . Cannon . | . . . Launcher 5 | . . 5 Special . | . . . Kinetic . | . . . Thermal . | . . . Explosive 5 | . . 5 Electromagnetic . | . . . Robot Hit Streak 1 | . . 1 Robot Miss Streak 4 | . . 4 Penetration Max . | . . . Secondary Targets . | . . . Shots Hit Robots 1 | . . 1 Core Hits 11 | . 1 10 Critical Kills . | . . . Critical Parts Destroyed . | . . . Critical Strikes . | . . . Melee Attacks . | . . . Impact . | . . . Slashing . | . . . Piercing . | . . . Sneak Attacks . | . . . Combat Hostiles . | . . . Follow-up Attacks . | . . . Damage Inflicted 758 | . 12 746 Guns . | . . . Cannons . | . . . Explosions 746 | . . 746 Melee . | . . . Ramming 12 | . 12 . Kinetic . | . . . Thermal . | . . . Explosive 746 | . . 746 Electromagnetic . | . . . Impact . | . . . Slashing . | . . . Piercing . | . . . Highest Corruption 3 | . . 3 Average Corruption 3 | . . 3 Corruption Purged . | . . . Corruption Blocked . | . . . Effects 2 | . . 2 Matter Fused 1 | . . 1 Data Loss (minor) 1 | . . 1 Overload Shots . | . . . Overflow Damage 73 | . . 73 Projectiles . | . . . Explosions 73 | . . 73 Melee . | . . . Knockbacks . | . . . Impact . | . . . Kinetic . | . . . Secondary . | . . . Self-Inflicted Damage 52 | . 6 46 Shots 2 | . . 2 Rammed 1 | . 1 . Targets Rammed 1 | . 1 . Kicked . | . . . Crushed . | . . . Highest Temperature . | . . . Average Temperature . | . . . Received Heat Transfer 156 | . 75 81 Siege Activations . | . . . Robots Corrupted . | . . . Combat Hostiles . | . . . Parts Fried . | . . . Impact Corruptions . | . . . Robots Melted . | . . . Combat Hostiles . | . . . Parts Melted . | . . . Heat Transferred . | . . . Parts Sabotaged . | . . . Parts Stolen . | . . . Parts Stripped . | . . . Power Chain Reactions . | . . . Missiles Intercepted . | . . . Alert | -11 -10 -9 ------- Run | Scr Mat Mat Peak Influence 408 | . 33 408 Initial 9 | . . 9 Average 91 | . 15 124 Maximum Alert Level 2 | . . 2 Low Security (%) 84 | 100 100 78 Level 1 12 | . . 17 Level 2 2 | . . 4 Level 3 . | . . . Level 4 . | . . . Level 5 . | . . . High Security . | . . . Max Security . | . . . Squads Dispatched 3 | . 2 1 Investigation 1 | . 1 . Extermination . | . . . Reinforcement 2 | . 1 1 Assault . | . . . Garrison . | . . . Intercept . | . . . Searches Triggered . | . . . Construction Impeded . | . . . Haulers Reinforced . | . . . Active Scanning Responses . | . . . Cargo Convoy Interrupts . | . . . Stealth | -11 -10 -9 --------- Run | Scr Mat Mat Distress Signals 1 | . . 1 Communications Jammed . | . . . Distress Signals . | . . . Times Spotted 19 | . 5 14 Peak Tracking Total 12 | . 4 12 Tactical Retreats 2 | . . 2 Traps | -11 -10 -9 ------- Run | Scr Mat Mat Traps Triggered . | . . . Indirectly . | . . . Trap Hack Attempts . | . . . Triggered . | . . . Disarmed . | . . . Reprogrammed . | . . . Reused . | . . . Traps Extracted . | . . . Installed . | . . . Triggered . | . . . Machines | -11 -10 -9 ---------- Run | Scr Mat Mat Machines Disabled 1 | . . 1 Max in Single Turn 1 | . . 1 Machines Sabotaged . | . . . Garrisons Compromised . | . . . Overloaded Fab Kills . | . . . Hacking | -11 -10 -9 --------- Run | Scr Mat Mat Machines Accessed 3 | . 2 1 Terminals 3 | . 2 1 Fabricators . | . . . Repair Stations . | . . . Recycling Units . | . . . Scanalyzers . | . . . Garrison Access . | . . . Total Hacks 10 | . 8 2 Successful 6 | . 6 . Failed 4 | . 2 2 Catastrophic 1 | . . 1 Database Lockouts . | . . . Manual 5 | . 3 2 Terminals 10 | . 8 2 Fabricators . | . . . Repair Stations . | . . . Recycling Units . | . . . Scanalyzers . | . . . Garrison Access . | . . . Terminal Hacks 5 | . 5 . Prototype ID Bank 1 | . 1 . Branch Access Points 1 | . 1 . Terminal Index 1 | . 1 . Alert Level 1 | . 1 . Unreport Threat 1 | . 1 . Fabricator Hacks . | . . . Repair Station Hacks . | . . . Recycling Unit Hacks . | . . . Scanalyzer . | . . . Garrison Access Hacks . | . . . Unauthorized Hacks 1 | . 1 . Terminals 1 | . 1 . Botnet 1 | . 1 . Fabricators . | . . . Repair Stations . | . . . Recycling Units . | . . . Scanalyzers . | . . . Garrison Access . | . . . Data Cores Recovered . | . . . Used . | . . . Hacking Detections 3 | . 2 1 Full Trace Events 2 | . 1 1 Feedback Events . | . . . Feedback Blocked . | . . . Robot Schematics Acquired . | . . . Robots Built . | . . . Authchips . | . . . Time . | . . . Total Robot Build Rating . | . . . Part Schematics Acquired . | . . . Parts Built . | . . . Authchips . | . . . Time . | . . . Total Part Build Rating . | . . . Parts Repaired . | . . . Time . | . . . Parts Recycled . | . . . Recycled Matter . | . . . Retrieved Matter . | . . . Retrieved Components . | . . . Parts Scanalyzed . | . . . Part Schematics Acquired . | . . . Parts Damaged . | . . . Bothacking | -11 -10 -9 ------------ Run | Scr Mat Mat Used RIF Installer . | . . . Robots Hacked . | . . . Non-combat . | . . . Combat . | . . . Robot Hacks Applied . | . . . Relay Couplers Released . | . . . Fabnet Peak Effective % . | . . . Robots Rewired . | . . . Allies Hacked . | . . . Hacks Repelled . | . . . Allies | -11 -10 -9 -------- Run | Scr Mat Mat Total Allies . | . . . Largest Group . | . . . Highest-Rated Group . | . . . Highest-Rated Ally . | . . . Total Orders . | . . . Ally Attacks . | . . . Total Damage . | . . . Kills . | . . . Allies Corrupted . | . . . Allies Melted . | . . . Intel | -11 -10 -9 ------- Run | Scr Mat Mat Robot Analysis Total . | . . . Derelict Logs Recovered . | . . . Drone Launches . | . . . Drone Recoveries . | . . . Exploration | -11 -10 -9 ------------- Run | Scr Mat Mat Turns Passed 201 | 1 59 141 Spaces Moved 309 | 1 101 207 Core 264 | 1 101 162 Treads . | . . . Legs . | . . . Wheels . | . . . Hover . | . . . Flight 45 | . . 45 Fastest Speed 37 | 50 50 37 Average Speed 48 | 50 50 47 Slowest Speed 50 | 50 50 50 Overloaded Moves . | . . . Propulsion Burnouts . | . . . Robots Hopped . | . . . Cave-ins Triggered . | . . . Exploration Rate (%) 27 | 2 42 38 Regions Visited 2 Branch Regions . Pre-discovered Areas . | . . . Known Exits Taken 1 | . 1 . Unknown Exits Taken 1 | 1 . . Scrap Searched . | . . . Spaces Dug . | . . . Terrain Destroyed 31 | . . 31 Melee . | . . . Projectile . | . . . AOE 31 | . . 31 Terrain Rammed . | . . . Walls Destroyed . | . . . Machines Disabled . | . . . Actions | -11 -10 -9 --------- Run | Scr Mat Mat Total 353 | 1 108 244 Wait 13 | . . 13 Move 307 | . 100 207 Hop . | . . . Pick Up 5 | . 3 2 Fast Attach 9 | . 2 7 Attach 3 | 1 . 2 Detach 1 | . . 1 Swap 2 | . . 2 Drop 7 | . 2 5 Fire 5 | . . 5 Melee . | . . . Ram 1 | . 1 . Kick . | . . . Crush . | . . . Escape Stasis . | . . . Rewire . | . . . Trap . | . . . Miscellaneous . | . . . Route ------- -11/Scrapyard -10/Materials (discovered 3 exits: *Mat / *Min x2) -9/Materials (discovered 3 exits: *Min x2 / *Sto) History --------- Turn | Location | Event 1 | -11/Scrapyard | Released all parts (6) 2 | -11/Scrapyard | Discovered new exit (range 0) 2 | -11/Scrapyard | Entered Materials 10 | -10/Materials | Identified exit to Mines 43 | -10/Materials | Discovered new exit (range 7) 60 | -10/Materials | Identified exit to Materials 61 | -10/Materials | Entered another Materials area 61 | -9/Materials | Evolved 2 slots: Utility x2 90 | -9/Materials | Discovered new exit (range 13) 96 | -9/Materials | Identified exit to Mines 127 | -9/Materials | Discovered exit to Mines (range 17) 188 | -9/Materials | Discovered new exit (range 15) 194 | -9/Materials | Identified exit to Storage 196 | -9/Materials | Destroyed 7 combat bots 202 | -9/Materials | Self-destructed Last Messages --------------- 00182_ U-05 Engineer lays Concrete. 00183_ K-01 Serf collects debris. 00184_ U-05 Engineer lays Concrete. 00184_ Dropped Lgt. Ion Engine. 00185_ U-05 Engineer lays Concrete. 00185_ U-05 Engineer builds a Wall. 00185_ R-06 Scavenger collects Lgt. Assault Rifle. 00186_ U-05 Engineer lays Concrete. 00186_ K-01 Serf collects debris. 00186_ U-05 Engineer lays Concrete. 00187_ U-05 Engineer builds a Wall. 00188_ EXIT=FOUND 00189_ K-01 Serf collects debris. 00191_ U-05 Engineer lays Concrete. 00192_ Rocket Launcher destroyed. 00194_ System corrupted: Matter fused (-7). 00194_ EXIT=IDENTIFIED: STORAGE 00195_ Flight Unit destroyed. 00199_ Dropped Lgt. Ion Engine. 00202_ Connecting with Terminal... Map ----- +----------------------------------------------------+ | ????????????????????????????????????????# | | ???????????????????????????????????????## | | ??????????????????????????????????###### | | ??????????????????????????????????? | | ???????????????????????????????????? | | ????????????????????????????????????? """ | | ??????????????????????????????? !! """ | | ??????????????????????????????" !! """ | | ?????????????????????????????? | | ?????????????????????????????? | | ?????????????????????????????????##"T"# ### | | ??????????????????????????????????????# ??? | | ??????????????????????????????????????# ??? | | ??????????????????????????????????????# ??? | | ??????????????????????????????????#####+### | | ??????????????????????????????????# | | ??????????????????????????????????# | | ??????????????????????????????????# | | ??????????????????????????????????# | | ???????????????????????????????X??+ | | ????????????????????????x?????????# | | ???????????????###+####???????????? | | ???????????????# #?????????????? | | ???????????????# #???????????#+#?## | | ???????????????# " #???????????# ### | | ???????????????# T@ *#???????????# | | ???????????????# " #???????????# !%* | | ???????????????# k t#???????##### ! | | ???????????????###/##/#???????#x # | | ?????????????????# #???????# # ## | | ?????????????????# #????????# ## ## | | ?????????????????# ########?# #? | | ???????X?????????# ## #?# ## | | ?????????????????# ## ### | | ?????????????????# X > ## | | ?????????????????#t##### ] ##########+##? | | ?????????????????# ????# #????????????? | | ????????????????? ????###+###????????????? | | ????????????????##+???????????????????????? | | ??????????????????????????????????????????? | | ??????????????????????????????????????????? | | ??????????????????????????????????????????? | | ??????????????????????????????????????????? | | ??????????????????????????????????????????? | | ??????????????????????????????????????????? | | | | | | | | | | | +----------------------------------------------------+ Best States ------------- Heat Dissipation 28 Energy Generation 10 Energy Capacity 125 Matter Stores 290 Matter Capacity 300 Sight Range 18 Robot Scan Range 14 Terrain Scan Density 10 Additional Mass Support 6 Armor Coverage 225 Evasion (%) 62 Item Schematics ----------------- None Robot Schematics ------------------ None Fabricated ------------ Nothing Alien Tech Used ----------------- None Achievements -------------- None Challenges ------------ None Game ------ Seed GravmagNeutrinoRigger Manual? 0 Play Time 00:07:43 Cumulative 159.5 hours Start 2022.05.02 @ 14:51:56 End 2022.05.02 @ 14:56:38 Sessions 1 Manual Loads 0 Difficulty Rogue Special Mode None Game No. 259 Rogue 258 Adventurer 0 Explorer 1 Win Type - Total 7 Types 7/0/0/0/0/0/0/0/0 Lore% 60 Gallery% 63 Achievement% 53 Wizard Run 0 Options --------- ASCII 1 Keyboard 0 Movement Vi Keybinds 0 Fullscreen 1 Font 18/SmallcapsGlow Map View 76x50 Tactical HUD 1 Map Filters NONE Filters NONE Steam 1 RUN: bf8dd868-98ae-45af-b280-f2b755783e49